bitfinex/quotes_BTCUSD_20240617
["timestamp","ask_amount","ask_price","bid_price","bid_amount"]
[1718611612127,2.34736884,66143.0,66142.0,0.05705]
[1718611612596,2.29666884,66143.0,66142.0,0.05705]
[1718611612838,2.4607173,66143.0,66142.0,0.05705]
[1718611613081,1.98435547,66143.0,66142.0,0.05705]
[1718611613323,2.03505547,66143.0,66142.0,0.05705]
[1718611613843,2.04499384,66143.0,66142.0,0.05705]
[1718611614085,2.03505547,66143.0,66142.0,0.05705]
[1718611615004,2.04499384,66143.0,66142.0,0.00085]
[1718611615212,2.34736884,66143.0,66142.0,0.00085]
[1718611616073,2.33743047,66143.0,66142.0,0.00085]
[1718611617498,1.98435547,66143.0,66142.0,0.00085]
[1718611617726,1.81359547,66143.0,66142.0,0.00085]
[1718611617948,1.56840809,66143.0,66142.0,0.05723165]
[1718611618158,1.52742616,66143.0,66142.0,0.05723165]
[1718611618372,1.5294041,66143.0,66142.0,0.05723165]
[1718611618587,1.2270291,66143.0,66142.0,0.05723165]
[1718611618815,0.43675655,66143.0,66142.0,0.05723165]
[1718611619020,0.38210703,66143.0,66142.0,0.07990522]
[1718611619263,0.17608395,66143.0,66142.0,0.05723165]
[1718611619482,0.02399616,66143.0,66142.0,0.06723165]
[1718611619689,0.00999616,66143.0,66142.0,0.21842065]
[1718611619894,0.03799616,66143.0,66142.0,0.06723165]
[1718611620112,0.03799616,66143.0,66142.0,0.12014462]
[1718611620345,0.49155816,66143.0,66142.0,0.05723165]
[1718611620573,0.49155816,66143.0,66142.0,0.36961065]
[1718611620574,0.03799616,66143.0,66142.0,0.36961065]
[1718611620823,0.03799616,66143.0,66142.0,0.52079965]
[1718611620824,0.02399616,66143.0,66142.0,0.52079965]
[1718611621052,0.01493501,66143.0,66142.0,0.52079965]
[1718611621509,0.02893501,66143.0,66142.0,0.82317865]
[1718611621712,0.02893501,66143.0,66142.0,0.60901812]
[1718611621935,0.02893501,66143.0,66142.0,0.73448462]
[1718611622149,0.01493501,66143.0,66142.0,0.60901812]
[1718611622364,0.02893501,66143.0,66142.0,0.73448061]
[1718611622583,0.02893501,66143.0,66142.0,0.96209712]
[1718611622797,0.02893501,66143.0,66142.0,1.0875555]
[1718611623013,0.02893501,66143.0,66142.0,1.08755555]
[1718611623231,0.02893501,66143.0,66142.0,0.96209712]
[1718611623453,0.01493501,66143.0,66142.0,0.96209712]
[1718611623656,0.01493501,66143.0,66142.0,1.08755574]
[1718611623895,0.02493501,66143.0,66142.0,1.08755574]
[1718611624326,0.02493501,66143.0,66142.0,1.26447612]
[1718611624544,0.02493501,66143.0,66142.0,0.96209712]
[1718611624988,0.01093501,66143.0,66142.0,0.60901812]
[1718611625461,0.01093501,66143.0,66142.0,0.30663912]
[1718611625923,0.02787755,66143.0,66142.0,0.60901812]
[1718611626124,0.01893501,66143.0,66142.0,0.60901812]
[1718611626556,0.32131001,66143.0,66142.0,0.14545012]
[1718611626784,0.01893501,66143.0,66142.0,0.05723165]
[1718611627014,0.02787766,66143.0,66142.0,0.05723165]
[1718611628993,0.02787766,66143.0,66142.0,0.06723165]
[1718611629412,0.02787766,66143.0,66142.0,0.12258422]
[1718611629639,0.02787766,66143.0,66142.0,0.27377322]
[1718611629856,0.02787766,66143.0,66142.0,0.57615222]
[1718611630070,0.01893501,66143.0,66142.0,0.87853122]
[1718611631398,0.01893501,66143.0,66142.0,1.18091022]
[1718611631831,0.01893501,66143.0,66142.0,0.87853122]
[1718611634279,0.01893501,66143.0,66142.0,0.57615222]
[1718611634891,0.01893501,66143.0,66142.0,0.87853122]
[1718611635312,0.01893501,66143.0,66142.0,0.57615222]
[1718611639808,0.01893501,66143.0,66142.0,0.57700222]
[1718611641513,0.01893501,66143.0,66142.0,0.87938122]
[1718611642581,0.01893501,66143.0,66142.0,0.97938122]
[1718611642784,0.01893501,66143.0,66142.0,1.10483583]
[1718611642984,0.01893501,66143.0,66142.0,1.40721483]
[1718611644077,0.00893501,66143.0,66142.0,1.40721483]
[1718611644281,0.01193501,66143.0,66142.0,1.40721483]
[1718611644697,0.01193501,66143.0,66142.0,1.30721483]
[1718611644901,0.00393501,66143.0,66142.0,1.40721483]
[1718611645148,0.00593501,66143.0,66142.0,1.40721483]
[1718611645758,0.00593501,66143.0,66142.0,1.55930262]
[1718611646672,0.00593501,66143.0,66142.0,1.5779563]
[1718611649718,0.00593501,66143.0,66142.0,1.8803353]
[1718611649955,0.00593501,66143.0,66142.0,1.88032562]
[1718611650615,0.00593501,66143.0,66142.0,1.57794662]
[1718611650851,0.00593501,66143.0,66142.0,1.90332562]
[1718611651072,0.00593501,66143.0,66142.0,1.95332562]
[1718611651778,0.00093501,66143.0,66142.0,1.95332562]
[1718611652001,0.00093501,66143.0,66142.0,1.97141445]
[1718611652225,0.00193501,66143.0,66142.0,1.95932562]
[1718611652447,0.00193501,66143.0,66142.0,1.95632562]
[1718611652663,0.00193501,66143.0,66142.0,2.10332562]
[1718611652664,0.00093501,66143.0,66142.0,2.10332562]
[1718611652888,0.00193501,66143.0,66142.0,2.27358516]
[1718611653124,0.00093501,66156.0,66155.0,1.17812]
[1718611653347,0.00093501,66156.0,66155.0,1.83167272]
[1718611653848,0.00093501,66156.0,66155.0,2.03167272]
[1718611654289,0.00093501,66156.0,66155.0,2.08137272]
[1718611654521,0.00093501,66156.0,66155.0,1.27603272]
[1718611654736,0.00093501,66156.0,66155.0,1.45077313]
[1718611654953,0.00093501,66156.0,66155.0,1.65309313]
[1718611655189,0.00093501,66156.0,66155.0,1.75309313]
[1718611655400,0.00193501,66156.0,66155.0,1.76009313]
[1718611655613,0.00193501,66156.0,66155.0,1.82909313]
[1718611655614,0.00093501,66156.0,66155.0,1.82909313]
[1718611655816,0.00093501,66156.0,66155.0,2.13141313]
[1718611656045,0.00293501,66156.0,66155.0,1.84509313]
[1718611656496,0.00193501,66156.0,66155.0,1.7106482]
[1718611656700,0.00193501,66156.0,66155.0,1.84705885]
[1718611656905,0.00293501,66156.0,66155.0,1.84705885]
[1718611657112,0.00293501,66156.0,66155.0,1.84005885]
[1718611657318,0.00193501,66156.0,66155.0,1.84005885]
[1718611657749,0.00293501,66156.0,66155.0,1.84705885]
[1718611658006,0.00293501,66156.0,66155.0,1.7146482]
[1718611658222,0.00293501,66156.0,66155.0,1.82905929]
[1718611658223,0.00193501,66156.0,66155.0,1.82905929]
[1718611658465,0.00293501,66156.0,66155.0,1.84505929]
[1718611658690,0.00393501,66156.0,66155.0,1.84505929]
[1718611660328,0.00393501,66156.0,66155.0,1.8350585]
[1718611660799,0.00393501,66156.0,66155.0,2.1873785]
[1718611662844,0.00393501,66156.0,66155.0,1.8350585]
[1718611663837,0.00393501,66156.0,66155.0,1.8850585]
[1718611664071,0.00393501,66156.0,66155.0,2.1873785]
[1718611664314,0.00393501,66156.0,66155.0,2.20525145]
[1718611664551,0.000946,66172.0,66171.0,0.765617]
[1718611664787,0.000946,66172.0,66171.0,1.19326003]
[1718611665274,0.000946,66172.0,66171.0,1.34534782]
[1718611665523,0.000946,66172.0,66171.0,1.44534782]
[1718611665755,0.000946,66172.0,66171.0,1.79729482]
[1718611665984,0.002946,66172.0,66171.0,1.94938261]
[1718611666209,0.006946,66172.0,66171.0,1.94938261]
[1718611666441,0.004946,66172.0,66171.0,2.09938261]
[1718611666673,0.0751,66191.0,66188.0,0.01]
[1718611666937,0.0751,66191.0,66190.0,0.7654]
[1718611667124,0.0751,66191.0,66190.0,0.78944041]
[1718611667693,0.0751,66191.0,66190.0,0.18512041]
[1718611668621,0.0761,66191.0,66190.0,0.18512041]
[1718611670608,0.08510885,66191.0,66190.0,0.18512041]
[1718611670865,0.08510885,66191.0,66190.0,0.48728041]
[1718611671073,0.01000885,66191.0,66190.0,0.78944041]
[1718611671336,0.001,66191.0,66190.0,0.78944041]
[1718611671966,0.001,66191.0,66190.0,1.09160041]
[1718611672385,0.1409,66195.0,66192.0,0.765377]
[1718611672636,0.1409,66195.0,66192.0,0.81828957]
[1718611672861,0.0779,66195.0,66192.0,1.12044057]
[1718611673511,0.1417,66197.0,66192.0,1.12044057]
[1718611674058,0.1417,66197.0,66192.0,0.81828957]
[1718611674303,0.07856,66193.0,66192.0,0.05291257]
[1718611674687,0.08758947,66193.0,66192.0,0.005]
[1718611675115,0.30026247,66193.0,66192.0,0.005]
[1718611675331,0.46310847,66193.0,66192.0,0.005]
[1718611675557,0.14918947,66193.0,66187.0,0.312173]
[1718611675769,0.14918947,66193.0,66189.0,0.151082]
[1718611676423,0.151101,66181.0,66177.0,0.01]
[1718611676690,0.07633989,66190.0,66173.0,0.01]
[1718611676691,0.151109,66178.0,66173.0,0.01]
[1718611676902,0.1427,66180.0,66168.0,0.30226]
[1718611676903,0.151115,66175.0,66170.0,0.151125]
[1718611677120,0.151121,66172.0,66171.0,0.0463385]
[1718611677345,0.228821,66172.0,66171.0,0.0463385]
[1718611677564,0.228821,66172.0,66169.0,0.01]
[1718611677565,0.08672791,66172.0,66169.0,0.01]
[1718611677793,0.0635,66171.0,66170.0,0.161125]
[1718611678222,0.07252783,66171.0,66170.0,0.161125]
[1718611678440,0.00902783,66171.0,66170.0,0.765627]
[1718611678654,0.0777,66172.0,66171.0,0.46337]
[1718611678866,0.0777,66172.0,66171.0,0.765617]
[1718611679156,0.0777,66172.0,66171.0,1.067864]
[1718611679370,0.453277,66185.0,66176.0,0.161112]
[1718611679371,0.0829,66177.0,66176.0,0.161112]
[1718611679584,0.0635,66180.0,66179.0,0.463315]
[1718611680019,0.0635,66180.0,66179.0,0.765525]
[1718611680230,0.0829,66182.0,66181.0,0.463301]
[1718611680456,0.0829,66182.0,66180.0,0.01]
[1718611680666,0.0829,66182.0,66179.0,0.151103]
[1718611680879,0.302201,66181.0,66180.0,0.07591887]
[1718611681092,0.151109,66178.0,66176.0,0.0795592]
[1718611681301,0.151109,66178.0,66177.0,0.01]
[1718611681522,0.0829,66182.0,66181.0,0.1511]
[1718611681747,0.0829,66182.0,66180.0,0.012]
[1718611681972,0.0829,66182.0,66181.0,0.01]
[1718611682190,0.1427,66192.0,66185.0,0.01]
[1718611682400,0.1427,66192.0,66181.0,0.3485329]
[1718611682401,0.1427,66192.0,66189.0,0.151081]
[1718611682619,0.1427,66192.0,66188.0,0.01]
[1718611682841,0.1427,66192.0,66188.0,0.161083]
[1718611683074,0.1427,66192.0,66190.0,0.01]
[1718611683298,0.1427,66192.0,66191.0,0.01]
[1718611683498,0.293776,66192.0,66189.0,0.0463269]
[1718611683706,0.1427,66192.0,66189.0,0.0463269]
[1718611683928,0.1467,66192.0,66191.0,0.161077]
[1718611684158,0.004,66192.0,66191.0,0.81644389]
[1718611684620,0.00086,66193.0,66192.0,0.161075]
[1718611684833,0.00086,66193.0,66192.0,0.463226]
[1718611685056,0.00950523,66193.0,66192.0,0.463226]
[1718611685286,0.00086,66193.0,66192.0,0.85702099]
[1718611685737,0.00086,66193.0,66192.0,1.13446632]
[1718611685945,0.00086,66193.0,66192.0,1.23446632]
[1718611686179,0.00086,66193.0,66192.0,1.13446632]
[1718611686394,0.00086,66193.0,66192.0,1.10910878]
[1718611686622,0.00086,66193.0,66192.0,1.23446627]
[1718611687253,0.00086,66193.0,66192.0,1.53661697]
[1718611688175,0.00286,66193.0,66192.0,1.53661697]
[1718611688390,0.00486,66193.0,66192.0,1.53661697]
[1718611688522,0.08436,66193.0,66192.0,0.22700118]
[1718611688742,0.08436,66193.0,66192.0,0.01]
[1718611688936,0.235433,66193.0,66192.0,0.01]
[1718611689147,0.151078,66191.0,66190.0,0.01]
[1718611689363,0.0633,66192.0,66189.0,0.161082]
[1718611689602,0.00828467,66191.0,66190.0,0.16108]
[1718611689843,0.00828467,66191.0,66190.0,0.7654]
[1718611690006,0.00828467,66191.0,66190.0,1.19292292]
[1718611690349,0.00286,66193.0,66192.0,1.067528]
[1718611690567,0.00286,66193.0,66192.0,1.19891097]
[1718611690782,0.00286,66193.0,66192.0,1.32426997]
[1718611691700,0.00086,66193.0,66192.0,1.32426997]
[1718611692414,0.00286,66193.0,66192.0,1.32426997]
[1718611692654,0.00286,66193.0,66192.0,1.47635776]
[1718611692887,0.00286,66193.0,66192.0,1.57635776]
[1718611693120,0.00486,66193.0,66192.0,1.57635776]
[1718611693574,0.00486,66193.0,66192.0,1.87850876]
[1718611693810,0.00486,66193.0,66192.0,2.07820876]
[1718611694036,0.00286,66193.0,66192.0,2.07820876]
[1718611694257,0.00086,66193.0,66192.0,2.07820876]
[1718611694525,0.00086,66193.0,66192.0,2.11120876]
[1718611694753,0.00086,66193.0,66192.0,2.12120876]
[1718611695900,0.00086,66193.0,66192.0,2.35192176]
[1718611696373,0.00086,66193.0,66192.0,2.65407276]
[1718611696589,0.00086,66193.0,66192.0,2.35192176]
[1718611696807,0.00086,66193.0,66192.0,2.06391766]
[1718611697327,0.00086,66193.0,66192.0,2.08921715]
[1718611698030,0.00086,66193.0,66192.0,1.78706615]
[1718611698498,0.00086,66193.0,66192.0,2.04584976]
[1718611699169,0.00086,66193.0,66192.0,1.74369876]
[1718611701502,0.00086,66193.0,66192.0,1.69369876]
[1718611701692,0.00086,66193.0,66192.0,1.74369876]
[1718611702391,0.00086,66193.0,66192.0,2.04584976]
[1718611702692,0.00086,66193.0,66192.0,1.74369876]
[1718611704237,0.00086,66193.0,66192.0,1.93170468]
[1718611705893,0.00086,66193.0,66192.0,2.23385568]
[1718611708352,0.00086,66193.0,66192.0,1.93170468]
[1718611709030,0.00086,66193.0,66192.0,2.23385568]
[1718611709536,0.00086,66193.0,66192.0,1.93170468]
[1718611710403,0.00086,66193.0,66192.0,1.93170849]
[1718611713207,0.00086,66193.0,66192.0,2.11263818]
[1718611713892,0.00086,66193.0,66192.0,2.59672753]
[1718611714339,0.00086,66193.0,66192.0,2.59620494]
[1718611714573,0.00086,66193.0,66192.0,2.68604186]
[1718611714787,0.00086,66193.0,66192.0,2.69507322]
[1718611716342,0.00086,66193.0,66192.0,2.69460148]
[1718611718716,0.00086,66193.0,66192.0,2.39245048]
[1718611718935,0.00086,66193.0,66192.0,2.29362739]
[1718611719297,0.00086,66193.0,66192.0,2.39248692]
[1718611720210,0.00086,66193.0,66192.0,2.68560653]
[1718611722003,0.00086,66193.0,66192.0,2.38345553]
[1718611722221,0.00086,66193.0,66192.0,2.33375553]
[1718611724389,0.00086,66193.0,66192.0,2.37870686]
[1718611724596,0.00086,66193.0,66192.0,2.68085786]
[1718611725299,0.00086,66193.0,66192.0,2.63590653]
[1718611726450,0.00086,66193.0,66192.0,2.19614976]
[1718611726682,0.00086,66193.0,66192.0,2.70390869]
[1718611727311,0.00086,66193.0,66192.0,2.77392113]
[1718611727518,0.00086,66193.0,66192.0,2.47177013]
[1718611727731,0.00086,66193.0,66192.0,2.40423378]
[1718611727983,0.00086,66193.0,66192.0,2.40404375]
[1718611728412,0.00086,66193.0,66192.0,2.70619475]
[1718611728634,0.00086,66193.0,66192.0,2.49417605]
[1718611729289,0.00086,66193.0,66192.0,2.40404375]
[1718611729503,0.00086,66193.0,66192.0,2.81875534]
[1718611729931,0.00086,66193.0,66192.0,2.81891352]
[1718611730395,0.00086,66193.0,66192.0,2.51676252]
[1718611731027,0.00086,66193.0,66192.0,2.81891352]
[1718611731247,0.00086,66193.0,66192.0,2.70619475]
[1718611734628,0.00086,66193.0,66192.0,2.83269475]
[1718611735537,0.00068542,66193.0,66192.0,2.70553354]
[1718611735744,0.00068542,66193.0,66192.0,2.75613354]
[1718611736430,0.0777,66196.0,66195.0,1.217479]
[1718611736641,0.0777,66196.0,66195.0,2.12665283]
[1718611736854,0.0777,66196.0,66195.0,2.37801947]
[1718611737688,0.0777,66196.0,66195.0,2.38401947]
[1718611738452,0.0777,66196.0,66195.0,2.39001947]
[1718611739036,0.07604389,66205.0,66204.0,0.01]
[1718611739276,0.00940501,66210.0,66209.0,0.161036]
[1718611739488,0.00940501,66210.0,66209.0,1.0037867]
[1718611739703,0.15030501,66210.0,66209.0,1.0037867]
[1718611740413,0.15030501,66210.0,66209.0,1.45794749]
[1718611740620,0.15030501,66210.0,66209.0,1.59827339]
[1718611740824,0.15030501,66210.0,66209.0,1.68858655]
[1718611741022,0.15030501,66210.0,66209.0,1.90034639]
[1718611741244,0.15230501,66210.0,66209.0,1.71116484]
[1718611741456,0.08940501,66210.0,66209.0,1.90938503]
[1718611741683,0.01140501,66210.0,66209.0,2.05938503]
[1718611741907,0.01140501,66210.0,66209.0,3.80223118]
[1718611742133,0.01140501,66210.0,66209.0,3.50015818]
[1718611742354,0.01140501,66210.0,66209.0,1.9415263]
[1718611742561,0.00940501,66210.0,66209.0,1.77934236]
[1718611742805,0.00940501,66210.0,66209.0,1.85655866]
[1718611743021,0.00940501,66210.0,66209.0,1.76355866]
[1718611743259,0.00940501,66210.0,66209.0,0.95052739]
[1718611743260,0.15270501,66210.0,66209.0,0.95052739]
[1718611743497,0.15270501,66210.0,66209.0,1.03923575]
[1718611743725,0.15270501,66210.0,66209.0,1.31020039]
[1718611743942,0.15270501,66210.0,66209.0,1.21020039]
[1718611744248,0.15270501,66210.0,66209.0,1.1961884]
[1718611744457,0.15270501,66210.0,66209.0,1.2101884]
[1718611744670,0.15270501,66210.0,66209.0,1.2241884]
[1718611745090,0.15270501,66210.0,66209.0,1.22827663]
[1718611745326,0.15270501,66210.0,66209.0,0.42549463]
[1718611745538,0.16097986,66210.0,66209.0,0.23308094]
[1718611745775,0.16097986,66210.0,66209.0,0.17041198]
[1718611745776,0.31201386,66210.0,66209.0,0.17041198]
[1718611746046,0.61437886,66210.0,66209.0,0.15641198]
[1718611746242,0.61437886,66210.0,66209.0,0.026]
[1718611746710,0.16127586,66210.0,66209.0,0.026]
[1718611747165,0.31230986,66210.0,66209.0,0.013]
[1718611747606,0.31201386,66210.0,66209.0,0.018]
[1718611747857,0.31230986,66210.0,66209.0,0.0219045]
[1718611748278,0.61437886,66210.0,66209.0,0.0219045]
[1718611748486,0.61437886,66210.0,66209.0,0.011]
[1718611748953,0.0603,66197.0,66194.0,0.10510836]
[1718611749213,0.0782,66196.0,66195.0,0.1969319]
[1718611749474,0.08646245,66196.0,66195.0,1.14030272]
[1718611749693,0.08646245,66196.0,66195.0,1.19541108]
[1718611749926,0.0782,66196.0,66195.0,1.14030272]
[1718611750161,0.0782,66196.0,66195.0,1.15030272]
[1718611750595,0.0782,66196.0,66195.0,1.16430272]
[1718611751033,0.0782,66196.0,66195.0,1.15030272]
[1718611751246,0.0782,66196.0,66195.0,0.55104851]
[1718611751455,0.0782,66196.0,66195.0,0.56504851]
[1718611751678,0.08646245,66196.0,66195.0,0.71611651]
[1718611751908,0.08646245,66196.0,66195.0,0.21602882]
[1718611752121,0.1394,66196.0,66195.0,0.23449031]
[1718611752334,0.14766245,66196.0,66195.0,0.27109031]
[1718611752779,0.14866245,66196.0,66195.0,0.28209031]
[1718611753216,0.14766245,66196.0,66195.0,0.25709031]
[1718611753434,0.14766245,66196.0,66195.0,0.33151424]
[1718611753654,0.14866245,66196.0,66195.0,0.43498224]
[1718611753903,0.14766245,66196.0,66195.0,0.42198224]
[1718611754129,0.14766245,66196.0,66195.0,0.73411924]
[1718611754345,0.14766245,66196.0,66195.0,0.73911924]
[1718611754564,0.1394,66196.0,66195.0,0.73511924]
[1718611754996,0.14764177,66196.0,66195.0,0.73511924]
[1718611755442,0.14764177,66196.0,66195.0,0.21749031]
[1718611755620,0.14764177,66196.0,66195.0,0.36855831]
[1718611755900,0.14764177,66196.0,66195.0,0.68069531]
[1718611756111,0.14764177,66196.0,66195.0,0.21749031]
[1718611756335,0.1394,66196.0,66195.0,0.36855831]
[1718611756730,0.14764061,66196.0,66195.0,0.75333688]
[1718611757151,0.1394,66196.0,66195.0,0.75333688]
[1718611757791,0.14764057,66196.0,66195.0,0.75333688]
[1718611758429,0.14764057,66196.0,66195.0,0.75334012]
[1718611759275,0.14764057,66196.0,66195.0,0.62798541]
[1718611760349,0.14764057,66196.0,66195.0,0.75334069]
[1718611761046,0.14764057,66196.0,66195.0,0.76334069]
[1718611761482,0.14764057,66196.0,66195.0,0.75334069]
[1718611761735,0.14764057,66196.0,66195.0,0.75126326]
[1718611761958,0.08644057,66196.0,66195.0,0.99072237]
[1718611762177,0.00824057,66196.0,66195.0,1.57030178]
[1718611762398,0.0782,66201.0,66200.0,0.765285]
[1718611762620,0.0782,66201.0,66200.0,1.15031215]
[1718611763299,0.0782,66201.0,66200.0,1.08763882]
[1718611763741,0.0782,66201.0,66200.0,1.07763882]
[1718611763967,0.0782,66201.0,66200.0,1.08763882]
[1718611764394,0.0778946,66201.0,66200.0,1.15131216]
[1718611765971,0.0778946,66201.0,66200.0,1.14231216]
[1718611766190,0.0778946,66201.0,66200.0,1.08963882]
[1718611767529,0.0778946,66201.0,66200.0,1.09048882]
[1718611770582,0.0778946,66201.0,66200.0,1.0904798]
[1718611777175,0.0778946,66201.0,66200.0,1.0398798]
[1718611784846,0.0778946,66201.0,66200.0,1.03987863]
[1718611785275,0.0778946,66201.0,66200.0,1.34199263]
[1718611785504,0.0778946,66201.0,66200.0,1.39259263]
[1718611785969,0.0778946,66201.0,66200.0,1.2672482]
[1718611786241,0.0778946,66201.0,66200.0,1.39259228]
[1718611787123,0.00940501,66210.0,66209.0,0.453109]
[1718611787344,0.08730501,66210.0,66209.0,0.35189948]
[1718611787565,0.09520974,66210.0,66209.0,0.35189948]
[1718611788457,0.09520974,66210.0,66209.0,0.20086348]
[1718611788458,0.15670974,66210.0,66209.0,0.20086348]
[1718611788668,0.15670974,66210.0,66209.0,0.20186348]
[1718611789319,0.15670974,66210.0,66209.0,0.20286348]
[1718611789320,0.15870974,66210.0,66209.0,0.20286348]
[1718611789979,0.15670974,66210.0,66209.0,0.20186348]
[1718611790594,0.15670974,66210.0,66209.0,0.20086348]
[1718611790936,0.15870974,66210.0,66209.0,0.20086348]
[1718611791381,0.15870974,66210.0,66209.0,0.35189948]
[1718611791797,0.15870974,66210.0,66209.0,0.20086348]
[1718611792455,0.15670974,66210.0,66209.0,0.20086348]
[1718611792679,0.15870974,66210.0,66209.0,0.20086348]
[1718611793850,0.15870974,66210.0,66209.0,0.0755194]
[1718611794092,0.15870974,66210.0,66209.0,0.20086256]
[1718611795807,0.01930974,66210.0,66209.0,1.47080535]
[1718611796244,0.01140501,66210.0,66209.0,1.47080535]
[1718611796476,0.01140501,66210.0,66209.0,1.16873235]
[1718611796909,0.00940501,66210.0,66209.0,1.47080535]
[1718611797334,0.00940501,66210.0,66209.0,1.18173235]
[1718611797548,0.00940501,66210.0,66209.0,1.17573235]
[1718611798605,0.00940501,66210.0,66209.0,1.18173235]
[1718611799294,0.00940501,66210.0,66209.0,1.17473235]
[1718611799725,0.00940501,66210.0,66209.0,1.17973235]
[1718611802478,0.00940501,66210.0,66209.0,1.58180535]
[1718611804237,0.00940501,66210.0,66209.0,1.88387835]
[1718611804481,0.00940501,66210.0,66209.0,2.12347643]
[1718611804707,0.00940501,66210.0,66209.0,2.07736725]
[1718611804940,0.00940501,66210.0,66209.0,1.91480068]
[1718611805157,0.00940501,66210.0,66209.0,1.73550535]
[1718611805382,0.00940501,66210.0,66209.0,1.85451988]
[1718611805599,0.00940501,66210.0,66209.0,1.72582455]
[1718611806034,0.00940501,66210.0,66209.0,1.90511988]
[1718611806237,0.00940501,66210.0,66209.0,2.02322682]
[1718611806451,0.00940501,66210.0,66209.0,1.93290536]
[1718611806900,0.00940501,66210.0,66209.0,2.22897836]
[1718611807123,0.00940501,66210.0,66209.0,2.31429982]
[1718611807362,0.00940501,66210.0,66209.0,2.22997836]
[1718611807573,0.00940501,66210.0,66209.0,2.22897836]
[1718611807788,0.00940501,66210.0,66209.0,2.09929694]
[1718611808028,0.00940501,66210.0,66209.0,2.35529694]
[1718611808237,0.00940501,66210.0,66209.0,2.4968219]
[1718611808452,0.00940501,66210.0,66209.0,2.4908219]
[1718611808654,0.00940501,66210.0,66209.0,2.56300789]
[1718611808866,0.00940501,66210.0,66209.0,2.57611541]
[1718611809111,0.00940501,66210.0,66209.0,2.55800789]
[1718611809346,0.00940501,66210.0,66209.0,2.48582622]
[1718611809772,0.00940501,66210.0,66209.0,2.50482622]
[1718611809993,0.00940501,66210.0,66209.0,2.92908089]
[1718611810212,0.00940501,66223.0,66222.0,1.167049]
[1718611810443,0.00940501,66223.0,66222.0,1.59138715]
[1718611810651,0.00940501,66223.0,66222.0,1.49138715]
[1718611811517,0.00940501,66223.0,66222.0,1.50538715]
[1718611812407,0.00940501,66223.0,66222.0,1.51838715]
[1718611813458,0.15100501,66223.0,66222.0,0.91435915]
[1718611813668,0.15100501,66223.0,66222.0,1.26697315]
[1718611813871,0.15100501,66223.0,66222.0,1.56898715]
[1718611815638,0.15100501,66223.0,66222.0,1.97100115]
[1718611815639,0.00940501,66223.0,66222.0,1.97100115]
[1718611815867,0.00940501,66223.0,66222.0,1.56898715]
[1718611817680,0.00940501,66223.0,66222.0,1.66898715]
[1718611818732,0.00940501,66223.0,66222.0,1.56898715]
[1718611819585,0.00940501,66223.0,66222.0,1.66898715]
[1718611820194,0.00940501,66223.0,66222.0,1.51838715]
[1718611820427,0.00940501,66223.0,66222.0,1.56898715]
[1718611820637,0.00940501,66223.0,66222.0,1.58683706]
[1718611821057,0.00940501,66223.0,66222.0,1.5867858]
[1718611821467,0.00940501,66223.0,66222.0,1.6867858]
[1718611824540,0.00940501,66223.0,66222.0,1.2341718]
[1718611824767,0.00940501,66223.0,66222.0,1.5867858]
[1718611825502,0.00940501,66223.0,66222.0,0.9221578]
[1718611825689,0.14610501,66223.0,66222.0,0.3728296]
[1718611825907,0.15396402,66223.0,66222.0,0.8258506]
[1718611826137,0.01726402,66223.0,66222.0,0.7852506]
[1718611826346,0.01726402,66223.0,66222.0,1.21675966]
[1718611826347,0.00940501,66223.0,66222.0,1.21675966]
[1718611826567,0.00940501,66223.0,66222.0,1.22675966]
[1718611827892,0.00940501,66223.0,66222.0,1.56352444]
[1718611828580,0.00940501,66223.0,66222.0,1.66352444]
[1718611829718,0.00940501,66223.0,66222.0,2.06553844]
[1718611829931,0.00940501,66223.0,66222.0,2.54425244]
[1718611830168,0.00940501,66223.0,66222.0,2.37736578]
[1718611830395,0.00940501,66223.0,66222.0,2.40648682]
[1718611830650,0.00940501,66223.0,66222.0,2.41200815]
[1718611831730,0.00940501,66223.0,66222.0,2.39800815]
[1718611832080,0.00940501,66223.0,66222.0,3.88500815]
[1718611832384,0.00940501,66223.0,66222.0,3.89900815]
[1718611833482,0.00940501,66223.0,66222.0,3.91300815]
[1718611833926,0.00940501,66223.0,66222.0,2.03429415]
[1718611834632,0.00940501,66223.0,66222.0,1.99965178]
[1718611834849,0.00940501,66223.0,66222.0,1.86451213]
[1718611835299,0.00940501,66223.0,66222.0,2.16652613]
[1718611835528,0.00940501,66223.0,66222.0,2.34040425]
[1718611836214,0.00940501,66223.0,66222.0,2.39010425]
[1718611837942,0.00940501,66223.0,66222.0,2.71511825]
[1718611838157,0.00940501,66223.0,66222.0,2.41310425]
[1718611838402,0.00940501,66223.0,66222.0,2.45818666]
[1718611838828,0.00940501,66223.0,66222.0,2.41310425]
[1718611839055,0.1381,66237.0,66236.0,0.11]
[1718611839274,0.009416,66239.0,66238.0,0.26097]
[1718611839499,0.009416,66239.0,66238.0,0.87502916]
[1718611839775,0.009416,66239.0,66238.0,3.39897584]
[1718611839983,0.009416,66239.0,66238.0,2.10073028]
[1718611840224,0.009416,66239.0,66238.0,1.93085216]
[1718611840450,0.009416,66239.0,66238.0,2.04999787]
[1718611840668,0.009416,66239.0,66238.0,2.23799724]
[1718611841099,0.009416,66239.0,66238.0,2.21987599]
[1718611841314,0.009416,66239.0,66238.0,2.25199715]
[1718611842387,0.009416,66239.0,66238.0,2.06399787]
[1718611842811,0.009416,66239.0,66238.0,2.07799787]
[1718611843229,0.009416,66239.0,66238.0,2.4626808]
[1718611843448,0.009416,66239.0,66238.0,2.62993887]
[1718611843672,0.009416,66239.0,66238.0,2.86460401]
[1718611843899,0.009416,66245.0,66244.0,1.820527]
[1718611844119,0.009416,66245.0,66244.0,2.14632622]
[1718611844329,0.009416,66245.0,66244.0,2.21503682]
[1718611844555,0.009416,66245.0,66244.0,2.38159834]
[1718611844792,0.009416,66245.0,66244.0,2.36348799]
[1718611845426,0.009416,66245.0,66244.0,2.38159845]
[1718611845876,0.009416,66245.0,66244.0,2.38269705]
[1718611846370,0.009416,66245.0,66244.0,2.22884667]
[1718611846599,0.009416,66245.0,66244.0,2.68049434]
[1718611846844,0.009416,66245.0,66244.0,2.37858034]
[1718611847022,0.009416,66245.0,66244.0,2.39258034]
[1718611847525,0.009416,66245.0,66244.0,3.89258034]
[1718611847974,0.009416,66245.0,66244.0,3.87858034]
[1718611848214,0.009416,66245.0,66244.0,3.72473786]
[1718611848458,0.009416,66245.0,66244.0,3.75098786]
[1718611848688,0.009416,66245.0,66244.0,3.70128786]
[1718611848917,0.009416,66245.0,66244.0,3.68728786]
[1718611849136,0.009416,66245.0,66244.0,3.67328786]
[1718611849359,0.009416,66245.0,66244.0,3.68728786]
[1718611849843,0.009416,66245.0,66244.0,2.17328786]
[1718611850069,0.009416,66245.0,66244.0,2.18728786]